{"text_format":"1","workbook":"xlsx","n_sheets":1,"sheets":["на 21.08.17"],"not_rendered":{"charts":0,"images":0,"macros":0,"external_links":0,"defined_names":1,"comments":0,"pivot_tables":0},"unopened":[],"bounds":{"document_bytes":16777216,"sheet_cells":100000,"rows_first":2000,"rows_last":500,"rows_between":2000,"halvings":0,"cell_chars":16384,"cell_head_chars":4096},"cells_cut":0,"cells_raw":0,"read":"whole","date_system":"1900"}

{"sheet":"на 21.08.17","index":0,"n_rows":36,"n_cols":11,"rows_kept":36,"cut":false,"hidden":false,"merged":[[0,6,0,10],[9,4,11,4],[9,2,11,2],[9,5,9,8],[9,1,11,1],[10,6,10,7],[10,8,11,8],[9,9,11,9],[9,3,11,3],[33,1,33,10],[36,2,36,11],[1,4,1,8],[2,4,2,8],[3,4,3,8],[32,0,32,10],[14,0,14,2],[13,0,13,2],[5,6,5,10],[7,0,7,10],[9,10,11,10],[9,0,11,0],[10,5,11,5]]}
[]
[null,null,null,null,"Приложение №15"]
[null,null,null,null,"к  решению Совета народных депутатов ЗАТО г.Радужный "]
[null,null,null,null,"                                                      Владимирской  области от 12.12. №17/91"]
[null,null,null,null,null,"           (в редакции решения СНД  ЗАТОг.Радужный  от 21.08.2017г. № 14/61)"]
[]
[]
["Адресная инвестиционная программа развития ЗАТО г.Радужный Владимирской области на   2017 год"]
[]
["№№\nп/п","Наименование мероприятий","Наименование муниципальной  программы (подпрограммы),  в мероприятиях которой утверждено мероприятия","код бюджетной классификации","Объём \nфинанси-\nрования\nтыс.руб.","в том числе ",null,null,null,"Ввод\nмощностей   (год)","Примечание"]
[null,null,null,null,null,"Субвенции, тыс. руб.","Собственные доходы",null,"Внебюджетные источники, тыс. руб."]
[null,null,null,null,null,null,"Субсидии и иные межбюджетные трансферты, тыс. руб.","Другие собственные  доходы, тыс. руб."]
[1,2,3,4,5,6,7,8,9,10,11]
["2017 год "]
["1.Программная часть программы"]
["1.1.","Строительство сетей водоснабжения   в 7/1 квартале ЗАТО г. Радужный Владимирской области  (Обеспечение инженерной и транспортной инфраструктурой земельных участков, предоставляемых (предоставленных) для индивидуального жилищного строительства семьям, имеющим троих и более детей в возрасте до18 лет, в ЗАТО г. Радужный Владимирской области )","Подпрограмма \"Стимулирование развития жилищного строительства ЗАТО г. Радужный\"  муниципальной программы  \"Обеспечение доступным и комфортным жильем населения ЗАТО г. Радужный Владимирской области\"","733-0502-07203S0050-414- м/б                                                      733-0502-0720370050-414- обл./б",{"$f":"G16+H16+I16+F16","v":10877.36},null,9487.02,1390.34,null,"2017"]
["1.2.","Строительство сетей водоснабжения  и водоотведения   в 7/1 квартале ЗАТО г. Радужный Владимирской области  (Обеспечение инженерной и транспортной инфраструктурой земельных участков, предоставляемых (предоставленных) для индивидуального жилищного строительства семьям, имеющим троих и более детей в возрасте до18 лет, в ЗАТО г. Радужный Владимирской области )","Подпрограмма \"Стимулирование развития жилищного строительства ЗАТО г. Радужный\"  муниципальной программы  \"Обеспечение доступным и комфортным жильем населения ЗАТО г. Радужный Владимирской области\"","733-0502-0720340100-414",{"$f":"G17+H17+I17+F17","v":3520.5135700000001},null,null,{"$f":"3571.5843-51.07073","v":3520.5135700000001},null,"2017"]
["1.3","Проектно-изыскательские работы  на строительство многоквартирного дома в 9 квартале ЗАТО г. Радужный Владимирской области","Подпрограмма \"Социальное жилье ЗАТО г. Радужный\"  муниципальной программы  \"Обеспечение доступным и комфортным жильем населения ЗАТО г. Радужный Владимирской области\"","733-0501-0750140100-414",{"$f":"G18+H18+I18+F18","v":4980},null,null,4980,null,"2017 (выполнение проектно-изыскательских работ)"]
["1.4","Технический, кадастровый паспорт сетей водоснабжения, водотведения, теплоснабжения,9 квартала  ( Комплексное освоение и развитие территории ЗАТО г. Радужный в  целях жилищного строительства)","Подпрограмма \"Стимулирование развития жилищного строительства ЗАТО г. Радужный\"  муниципальной программы  \"Обеспечение доступным и комфортным жильем населения ЗАТО г. Радужный Владимирской области\"","733-0502-07 2 01 40100-414",50,null,null,50,null,"2017"]
["1.5","Технический, кадастровый паспорт сетей Газоснабжения в квартале в 7/1  ЗАТО г. Радужный Владимирской  области\" (Обеспечение инженерной и транспортной инфраструктурой земельных участков, предоставляемых (предоставленных) для индивидуального жилищного строительства семьям, имеющим троих и более детей в возрасте до18 лет, в ЗАТО г. Радужный Владимирской области )","Подпрограмма \"Стимулирование развития жилищного строительства ЗАТО г. Радужный\"  муниципальной программы  \"Обеспечение доступным и комфортным жильем населения ЗАТО г. Радужный Владимирской области\"","733-0502-07 2 03 40100-414",51.070729999999998,null,null,51.070729999999998,null,"2017"]
["1.6","Проектные работы на строительство многоквартирного дома и экспертиза проектно-сметной документации  (квартал 7/3 дом № 2)","Подпрограмма \"Социальное жилье ЗАТО г.Радужный\"муниципальной программы \"Обеспечение доступным и комфортным жильем населения ЗАТО г. Радужный Владимирской области\"","733-0501-07 5 01 40100-414",650,null,null,650,null,"2017                 (выполнение проектных работ, экспертизы проекта)"]
["1.7"," Технический, кадастровый паспорт на электрические сети к  контрольно-пропускному пункту в 10 квартале ЗАТО г. Радужный Владимирской области","Подпрограмма \"Комплексные меры профилактики правонарушений\" муниципальной программы \"Обеспечение общественного порядка и профилактики правонарушений в ЗАТО г.Радужный \"","733-0314-03 1 01 40300-414",30,null,null,30,null,"2017"]
["1.8","Технический, кадастровый паспорт  системы станции обеззараживания сточных вод на очистных сооружениях северной группы второй очереди на территороии  ЗАТО г. Радужный Владимирской области","Муниципальная   программа «Обеспечение населения ЗАТО г.Радужный Владимирской области питьевой водой»","733-0502-11 0 02 40100-414",49,null,null,49,null,"2017"]
["1.9"," Комбинированная машина КО-560 с илососным и каналопромывочным оборудованием,  предназначенная для профилактической санитарной очистки колодцев и трубопроводов городской ливневой канализации от ила, грунтовых наносов и других загрязнений, а также ликвидации в них аварийных засоров\n","Муниципальная   программа «Обеспечение населения ЗАТО г.Радужный Владимирской области питьевой водой»","733-0502-11 0 02 40200-244",6500,null,null,6500,null,"2017"]
["1.10","Приобретение  жилья  на вторичном рынке","Подпрограмма \"Социальное жилье ЗАТО г.Радужный\"муниципальной программы \"Обеспечение доступным и комфортным жильем населения ЗАТО г. Радужный Владимирской области\"","702-0501-0750240310-412",870,null,null,870,null,"2017"]
["1.11","Приобретение  жилья  для детей сирот (3 квартиры)","Подпрограмма \"Обеспечение защиты прав и интересов детей сирот и детей, оставшихся без попечения родителей ЗАТО г. Радужный Владимирской области\" муниципальной программы \"Развитие образования ЗАТО г. Радужный Владимирской области\"","702-1004-1550271420-244 : 822,4 тыс. руб.;                                 702-1004-15502R0820-244: 2950,2 тыс. руб.",3772.6,3772.6,null,0,null,"2017"]
["1.12.","Приобретение  автобуса \"Газель Next\" для нужд образования"," Подпрограмма \"Развитие общего, дошкольного и дополнительного образования ЗАТО г.Радужный \" муниципальной программы \"Развитие образования ЗАТО г.Радужный Владимирской области\"","770-0703-1510120220-612",2100,null,null,2100,null,"2017"]
["1.13","Приобретение трактора с навесным оборудованием для нужд жилищно-коммунального хозяйства","Подпрограмма \"Развитие жилищно-коммунального комплекса ЗАТО г. Радужный Владимирской области\" муниципальной программы \"Жилищно-коммунальный комплекс ЗАТО г. Радужный Владимирской области\"","733-0502-0910240200-244",1150,null,null,1150,null,"2017"]
["1.14","Разработка местных нормативов градостроительного проектирования","Муниципальная программа  \"Обеспечение доступным и комфортным жильем населения ЗАТО г. Радужный Владимирской области\"","733-0412-0710120220-244-226",99,null,null,99,null,"2017"]
[null,"Всего по программной части",null,null,{"$f":"G30+H30+I30+F30","v":34699.544300000001},{"$f":"SUM(F16:F26)","v":3772.6},{"$f":"SUM(G16:G26)","v":9487.02},{"$f":"SUM(H16:H29)","v":21439.924299999999}]
[null,"ВСЕГО по 2017 году",null,null,{"$f":"E30","v":34699.544300000001},{"$f":"F30","v":3772.6},{"$f":"G30","v":9487.02},{"$f":"H30","v":21439.924299999999}]
[]
[]
[null,"                      Руководитель                                                        О.М.Горшкова"]
[null,"                     Зав.отделом","Л.И.Заболотских"]
[null,"                   В.Н.Милованова 3-67-17"]